[Event "1st Rio Chess Open 2022"]
[Site "Rio de Janeiro"]
[Date "2022.04.24"]
[Round "6.6"]
[White "Lima, Kleyton Alcantara"]
[Black "Alboredo, Julia"]
[Result "0-1"]
[ECO "B22"]
[WhiteElo "2080"]
[BlackElo "2252"]
[Annotator "TA"]
[PlyCount "80"]
[EventDate "2022.04.18"]
[EventType "swiss"]
[EventCountry "BRA"]
[SourceTitle "playchess.com"]
[Source "ChessBase"]
[SourceQuality "1"]
[TimeControl "5400+30"]

{[%evp 15,80,0,31,0,0,0,0,-6,-13,-8,-12,-14,41,47,73,0,30,8,0,0,32,0,0,0,29,5,0,5,6,0,0,0,0,0,0,7,8,0,0,0,2,0,0,0,0,-17,-17,-17,0,-16,10,3,3,3,3,0,0,-447,-445,-439,-425,-458,-433,-520,-502,-490,-460]} 1. e4 {[%emt 0:07:55]} c5 {[%emt 0:00:14]} 2. c3 {[%emt 0:00:55]} Nf6 {[%emt 0:00:23]} 3. e5 {[%emt 0:00:18]} Nd5 {[%emt 0:00:10]} 4. Nf3 {[%emt 0:00:05]} Nc6 {[%emt 0:00:15]} 5. d4 {[%emt 0:00:10]} cxd4 {[%emt 0:00:08]} 6. cxd4 {[%emt 0:00:07]} d6 {[%emt 0:00:19]} 7. Bc4 {[%emt 0:00:26]} Nb6 {[%emt 0:00:11]} 8. Bb5 {[%emt 0:00:05]} Bd7 {[%emt 0:00:10][%cal Oc6e5]} 9. exd6 {[%emt 0:00:56] B22: Sicilian: 2 c3.} e6 {[%emt 0:00:16]} 10. O-O {[%emt 0:00:12][%cal Od4d5,Bh1f1,Bf1e1,Be1e5][%mdl 32]} Bxd6 {[%emt 0:00:14]} 11. Nc3 {[%emt 0:00:08] The position is equal.} O-O {[%emt 0:17:10]} 12. a3 {[%emt 0:06:32]} Ne7 {[%emt 0:09:47]} 13. Bd3 {[%emt 0:01:15] [#]} f5 $146 {[%emt 0:06:45]} (13... Bc6 $11) ({Predecessor:} 13... Nbd5 14. Ne4 Bf4 15. Ne5 Ng6 16. Nc5 Nxe5 17. dxe5 Bxe5 18. Bxh7+ Kxh7 19. Qh5+ Kg8 20. Qxe5 {½-½ (41) Mammadov,Z (2467)-Adly,A (2598) Al Ain 2015}) 14. Re1 {[%emt 0:05:29]} Ned5 {[%emt 0:02:38]} 15. Bg5 {[%emt 0:03:34]} ({White should play} 15. Qb3 $16) 15... Qe8 {[%emt 0:04:46]} 16. Ne5 {[%emt 0:04:55]} Bxe5 {[%emt 0:02:04]} 17. Rxe5 {[%emt 0:02:54]} Qg6 {[%emt 0:00:33]} 18. Bh4 {[%emt 0:05:42]} Bc6 {[%emt 0:10:57][%cal Od5e3] [#] Strongly threatening ...Ne3!} 19. f3 {[%emt 0:02:38]} Nf4 {[%emt 0:09:40][%csl Gf4][%cal Rg6g2] Pair of Knights!} 20. Bg3 {[%emt 0:05:10]} Nxd3 {[%emt 0:01:02]} 21. Qxd3 {[%emt 0:00:03]} Rad8 {[%emt 0:02:08]} 22. Rae1 {[%emt 0:03:46]} Rfe8 {[%emt 0:03:50]} 23. b4 {[%emt 0:04:27]} Bd5 {[%emt 0:04:45]} 24. Nxd5 {[%emt 0:08:47]} Rxd5 {[%emt 0:03:03]} 25. R5e2 {[%emt 0:06:13]} Qf7 {[%emt 0:02:46]} 26. Rc2 {[%emt 0:04:56]} f4 {[%emt 0:01:25]} 27. Bf2 {[%emt 0:00:48]} Rd7 {[%emt 0:05:01]} 28. Rce2 {[%emt 0:04:28]} Nd5 {[%emt 0:00:31]} 29. Re5 {[%emt 0:00:14]} Rd6 {[%emt 0:03:17]} 30. Qb5 {[%emt 0:02:47]} a6 {[%emt 0:03:43]} 31. Qe2 {[%emt 0:03:43]} Qd7 {[%emt 0:01:24]} 32. Qe4 {[%emt 0:01:07]} g6 {[%emt 0:00:33]} 33. h4 {[%emt 0:03:05]} Qf7 {[%emt 0:02:01]} 34. h5 {[%emt 0:01:46]} Qf6 $1 {[%emt 0:03:50] Inhibits Bh4.} 35. hxg6 {[%emt 0:00:18]} hxg6 {[%emt 0:00:02]} 36. Bh4 $2 {[%emt 0:00:42][%mdl 8192] [#]} Qxh4 $19 {[%emt 0:00:32] Black is clearly winning.} 37. Qxg6+ {[%emt 0:00:02]} Kf8 {[%emt 0:00:07][%cal Bg8f8,Bf8e7,Be7d8][%mdl 32]} 38. Rf5+ {[%emt 0:02:22]} Ke7 {[%emt 0:00:06]} 39. Rf7+ {[%emt 0:00:08]} Kd8 {[%emt 0:00:06]} 40. Re5 {[%emt 0:00:04]} Rc6 {[%emt 0:03:38] Weighted Error Value: White=0.36/Black=0.09 (flawless)} 0-1